Cogmind - Beta 15 @@@ ROGUE MODE // 2025.06.22 @ 17:40:06 Player: Waste Result: Destroyed by Piercing Trap Performance ------------- Evolutions (0) 0 Regions Visited (2) 400 Robots Destroyed (27) 135 Value Destroyed (522) 522 Prototype IDs (0) 0 Alien Tech Used (0) 0 Bonus (0) 0 TOTAL SCORE: 1057 Bonus ------- None Cogmind --------- Core Integrity 0/250 Matter 285/300 Energy 236/250 System Corruption 0% Temperature Cool (2) Movement Treading (340) Ox2 Location -10/Subcaves Parts ------- > --- POWER (1) -------- Ion Engine > --- PROPULSION (2) --- Light Treads Spiked Treads > --- UTILITY (2) ------ Huge Storage Unit Makeshift Light Armor Plating > --- WEAPON (2) ------- Subdweller Laser Battle Cannon > --- INVENTORY (25) --- Ion Engine Light Ion Engine Light Treads Aluminum Leg Aluminum Leg Aluminum Leg Wheel Wheel Small Storage Unit Medium Matter Pod (100) Makeshift Light Armor Plating Scrap Shield EM Pulse Gun Riot Gun Medium Laser Small Laser Light Assault Rifle Light Assault Rifle Grenade Launcher Makeshift Hammer Peak State ------------ > --- POWER ------------ Ion Engine > --- PROPULSION ------- Light Treads Spiked Treads > --- UTILITY ---------- Huge Storage Unit Makeshift Light Armor Plating > --- WEAPON ----------- Subdweller Laser Battle Cannon > --- INVENTORY -------- Ion Engine Light Ion Engine Light Treads Aluminum Leg Aluminum Leg Aluminum Leg Wheel Wheel Small Storage Unit Medium Matter Pod Makeshift Light Armor Plating Scrap Shield EM Pulse Gun Riot Gun Medium Laser Small Laser Light Assault Rifle Light Assault Rifle Grenade Launcher Makeshift Hammer [Rating: 16] Favorites ----------- Power Ion Engine Engine Ion Engine Propulsion Aluminum Leg Treads Spiked Treads Leg Aluminum Leg Utility Huge Storage Unit Device Improved Heat Sink Storage Huge Storage Unit Protection Light Armor Plating Weapon Light Assault Rifle Energy Gun Medium Laser Ballistic Gun Light Assault Rifle Ballistic Cannon Battle Cannon Build | -11 -10 -10 ------- Run | Yrd Mat Sub Slots Evolved . | . . . Power . | . . . Propulsion . | . . . Utility . | . . . Weapon . | . . . Parts Attached 17 | . 10 7 Power 1 | . 1 . Engine 1 | . 1 . Core . | . . . Reactor . | . . . Propulsion 7 | . 5 2 Treads 2 | . . 2 Leg 5 | . 5 . Wheel . | . . . Hover . | . . . Flight . | . . . Utility 4 | . 2 2 Device 1 | . 1 . Storage 1 | . 1 . Processor . | . . . Hackware . | . . . Protection 2 | . . 2 Artifact . | . . . Weapon 5 | . 2 3 Energy Gun 2 | . 1 1 Energy Cannon . | . . . Ballistic Gun 2 | . 1 1 Ballistic Cannon 1 | . . 1 Launcher . | . . . Special Weapon . | . . . Impact Weapon . | . . . Slashing Weapon . | . . . Piercing Weapon . | . . . Special Melee Weapon . | . . . Unidentified Prototypes . | . . . Parts Lost 6 | . 4 2 Power 1 | . 1 . Propulsion 1 | . 1 . Utility 2 | . . 2 Weapon 2 | . 2 . Highest Loss Streak 2 | . 2 1 To Critical Strikes . | . . . Average Backups 15 | . 11 18 Power 2 | . 2 2 Propulsion 5 | . 5 6 Utility 3 | . 2 4 Weapon 4 | . 2 6 Tool/Special . | . . . Unused Backups 16 | . . 16 Power 2 | . . 2 Propulsion 4 | . . 4 Utility 4 | . . 4 Weapon 6 | . . 6 Tool/Special . | . . . Average Slot Usage (%) 99 | . 98 99 Engine 13 | . 13 14 Treads 8 | . . 19 Leg 19 | . 27 8 Device 8 | . 13 3 Storage 14 | . 14 14 Protection 4 | . . 10 Energy Gun 12 | . 13 9 Ballistic Gun 11 | . 13 8 Ballistic Cannon 4 | . . 9 Peak Build Rating 16 | . 10 16 Average Rating 10 | . 9 12 On Entrance 7 | 6 6 10 Naked Turns . | . . . Heaviest Build 96 | 12 89 96 Greatest Support 40 | 20 20 40 Greatest Overweight (x) 4 | . 4 4 Average Overweight (x) 3 | . 3 2 Largest Inventory Capacity 25 | . 25 25 Average Capacity 24 | . 24 25 Most Carried 22 | . 16 22 Average Carried 15 | . 11 19 Final Capacity 25 | 8 25 25 Final Carried 21 | 6 16 21 Class Distribution -------------------- 90% | Mutant 9% | Scavenger-Mutant Dominant Class ---------------- Mutant | -10/Materials Mutant | -10/Subcaves Resources | -11 -10 -10 ----------- Run | Yrd Mat Sub Matter Collected 566 | 200 245 121 Remotely . | . . . Salvage Created 877 | . 770 107 Parts 53 | . 47 6 Haulers Intercepted 1 | . 1 . Recyclers Shooed 3 | . 3 . Parts Field Recycled . | . . . Retrieved Matter . | . . . Parts Self-Destructed 4 | . . 4 Prevented . | . . . Kills | -11 -10 -10 ------- Run | Yrd Mat Sub Combat Hostiles Destroyed 20 | . 17 3 Guns 20 | . 17 3 Classes Destroyed 7 | . 6 1 Worker 2 | . 2 . Builder 1 | . 1 . Hauler 1 | . 1 . Recycler 3 | . 3 . Swarmer 9 | . 9 . Grunt 8 | . 8 . Subdweller 3 | . . 3 Best Kill Streak 8 | . 8 1 Combat Bots Only 5 | . 5 1 Max Kills in Single Turn 2 | . 2 1 Gunslinging . | . . . Exploded . | . . . Melee . | . . . Uniques/NPCs Destroyed . | . . . Combat | -11 -10 -10 -------- Run | Yrd Mat Sub Hostile Shots Fired 126 | . 104 22 Missed 29 | . 26 3 Hits 97 | . 78 19 Projectile 97 | . 78 19 Critical Strikes 1 | . . 1 Damage Taken 1240 | . 749 491 Core 267 | . 184 83 Absorbed by Shields . | . . . Core Remaining (%) 100 | 100 . . Volleys Fired 90 | . 79 11 Largest 2 | . 2 2 Hottest 75 | . 70 75 Shots Fired 177 | . 155 22 Gun 170 | . 155 15 Cannon 7 | . . 7 Launcher . | . . . Special . | . . . Kinetic 94 | . 76 18 Thermal 83 | . 79 4 Explosive . | . . . Electromagnetic . | . . . Robot Hit Streak 12 | . 12 9 Robot Miss Streak 4 | . 4 1 Penetration Max . | . . . Secondary Targets 5 | . 5 . Max Gunslinging Chain 1 | . 1 . Shots Hit Robots 114 | . 98 16 Core Hits 48 | . 43 5 Critical Kills . | . . . Critical Parts Destroyed . | . . . Critical Strikes 2 | . 1 1 Burn 1 | . 1 . Blast 1 | . . 1 Melee Attacks . | . . . Impact . | . . . Slashing . | . . . Piercing . | . . . Sneak Attacks . | . . . Combat Hostiles . | . . . Follow-up Attacks . | . . . Damage Inflicted 1339 | . 1070 269 Guns 1207 | . 1051 156 Cannons 110 | . . 110 Explosions . | . . . Melee . | . . . Ramming 22 | . 19 3 Kinetic 644 | . 415 229 Thermal 673 | . 636 37 Explosive . | . . . Electromagnetic . | . . . Impact . | . . . Slashing . | . . . Piercing . | . . . Highest Corruption . | . . . Average Corruption . | . . . Corruption Purged . | . . . Corruption Blocked . | . . . Overload Shots . | . . . Overflow Damage . | . . . Projectiles . | . . . Explosions . | . . . Melee . | . . . Knockbacks . | . . . Impact . | . . . Kinetic . | . . . Secondary . | . . . Self-Inflicted Damage . | . . . Shots . | . . . Rammed 1 | . . 1 Targets Rammed 3 | . 2 1 Kicked 2 | . 2 . Crushed . | . . . Highest Temperature 94 | . 94 3 Average Temperature 15 | . 16 3 Received Heat Transfer 363 | . 249 114 Siege Activations . | . . . Martial Activations . | . . . Shielding Activations . | . . . Robots Disrupted . | . . . Combat Hostiles . | . . . Robots Corrupted . | . . . Combat Hostiles . | . . . Parts Fried . | . . . Impact Corruptions . | . . . Robots Melted . | . . . Combat Hostiles . | . . . Parts Melted 3 | . 3 . Heat Transferred 1845 | . 1734 111 Parts Sabotaged . | . . . Parts Stolen . | . . . Parts Stripped . | . . . Power Chain Reactions . | . . . Alert | -11 -10 -10 ------- Run | Yrd Mat Sub Maximum Alert Level . | . . . Low Security (%) 100 | . 100 . Level 1 . | . . . Level 2 . | . . . Level 3 . | . . . Level 4 . | . . . Level 5 . | . . . High Security . | . . . Max Security . | . . . Peak Influence 119 | . 119 . Initial . | . . . Average 23 | . 23 . Influence Increases 454 | . 454 . Destroy 0b10 Robot/C 340 | . 340 . Destroy 0b10 Robot/NC 35 | . 35 . Destroy Leader 72 | . 72 . Successful Hack 7 | . 7 . Influence Decreases 454 | . 349 105 Entered New Map 51 | . . 51 Time Decay 383 | . 329 54 Lost Part 20 | . 20 . Squads Dispatched 3 | . 3 . Investigation 1 | . 1 . Extermination . | . . . Reinforcement 2 | . 2 . Assault . | . . . Garrison . | . . . Intercept . | . . . Searches Triggered . | . . . Construction Impeded . | . . . Haulers Reinforced . | . . . Active Scanning Responses . | . . . Cargo Convoy Interrupts . | . . . Stealth | -11 -10 -10 --------- Run | Yrd Mat Sub Distress Signals 2 | . 2 . Communications Jammed . | . . . Distress Signals . | . . . Times Spotted 38 | . 34 4 Peak Tracking Total 4 | . 4 2 Tactical Retreats . | . . . Traps | -11 -10 -10 ------- Run | Yrd Mat Sub Traps Triggered 3 | . 1 2 Indirectly . | . . . Trap Hack Attempts . | . . . Triggered . | . . . Disarmed . | . . . Reprogrammed . | . . . Reused . | . . . Traps Extracted . | . . . Installed . | . . . Triggered . | . . . Machines | -11 -10 -10 ---------- Run | Yrd Mat Sub Machines Disabled . | . . . Max in Single Turn . | . . . Machines Repaired . | . . . Machines Dismantled . | . . . Machines Sabotaged . | . . . Overloaded Fab Kills . | . . . Hacking | -11 -10 -10 --------- Run | Yrd Mat Sub Machines Accessed 2 | . 2 . Terminals 2 | . 2 . Fabricators . | . . . Repair Stations . | . . . Recycling Units . | . . . Scanalyzers . | . . . Garrison Access . | . . . Total Hacks 5 | . 5 . Successful 3 | . 3 . Failed 1 | . 1 . Catastrophic . | . . . Database Lockouts 1 | . 1 . Manual 7 | . 7 . Terminals 5 | . 5 . Fabricators . | . . . Repair Stations . | . . . Recycling Units . | . . . Scanalyzers . | . . . Garrison Access . | . . . Terminal Hacks 3 | . 3 . Robot Analysis 2 | . 2 . Registered Components 1 | . 1 . Fabricator Hacks . | . . . Repair Station Hacks . | . . . Recycling Unit Hacks . | . . . Scanalyzer . | . . . Garrison Access Hacks . | . . . Unauthorized Hacks . | . . . Terminals . | . . . Fabricators . | . . . Repair Stations . | . . . Recycling Units . | . . . Scanalyzers . | . . . Garrison Access . | . . . Data Cores Recovered . | . . . Used . | . . . Hacking Detections 2 | . 2 . Full Trace Events . | . . . Feedback Events . | . . . Feedback Blocked . | . . . Robot Schematics Acquired . | . . . Robots Built . | . . . Authchips . | . . . Time . | . . . Total Robot Build Rating . | . . . Part Schematics Acquired . | . . . Parts Built . | . . . Authchips . | . . . Time . | . . . Total Part Build Rating . | . . . Parts Repaired . | . . . Time . | . . . Parts Recycled . | . . . Recycled Matter . | . . . Retrieved Matter . | . . . Retrieved Components . | . . . Parts Scanalyzed . | . . . Part Schematics Acquired . | . . . Parts Damaged . | . . . Bothacking | -11 -10 -10 ------------ Run | Yrd Mat Sub Used RIF Installer . | . . . Robots Hacked . | . . . Non-combat . | . . . Combat . | . . . Robot Hacks Applied . | . . . Relay Couplers Released . | . . . Fabnet Peak Effective % . | . . . Robots Rewired . | . . . Allies Hacked . | . . . Hacks Repelled . | . . . Allies | -11 -10 -10 -------- Run | Yrd Mat Sub Total Allies . | . . . Largest Group . | . . . Highest-Rated Group . | . . . Highest-Rated Ally . | . . . Total Orders . | . . . Ally Attacks . | . . . Total Damage . | . . . Kills . | . . . Allies Corrupted . | . . . Allies Melted . | . . . Intel | -11 -10 -10 ------- Run | Yrd Mat Sub Active Infowar (turns) . | . . . Robot Analysis Total 2 | . 2 . Derelict Logs Recovered 1 | . . 1 Drone Launches . | . . . Drone Recoveries . | . . . Exploration | -11 -10 -10 ------------- Run | Yrd Mat Sub Turns Passed 3984 | . 2207 1777 Spaces Moved 1023 | 1 539 483 Core . | . . . Treads 353 | . . 353 Legs 670 | 1 539 130 Wheels . | . . . Hover . | . . . Flight . | . . . Fastest Speed 120 | 120 120 340 Average Speed 359 | 120 362 356 Slowest Speed 400 | 120 400 400 Overloaded Moves . | . . . Propulsion Burnouts . | . . . Robots Hopped . | . . . Potential Cave-ins . | . . . Cave-ins Triggered . | . . . Exploration Rate (%) 36 | 2 73 34 Regions Visited 2 Branch Regions 1 Pre-discovered Areas . | . . . Known Exits Taken . | . . . Unknown Exits Taken 2 | 1 1 . Scrap Searched 7 | . . 7 Spaces Dug . | . . . Terrain Destroyed . | . . . Melee . | . . . Projectile . | . . . AOE . | . . . Terrain Rammed . | . . . Walls Destroyed . | . . . Machines Disabled . | . . . Actions | -11 -10 -10 --------- Run | Yrd Mat Sub Total 1165 | . 648 517 Wait 17 | . 10 7 Move 1021 | . 538 483 Hop . | . . . Pick Up 15 | . 9 6 Fast Attach 2 | . 1 1 Attach 7 | . 4 3 Detach . | . . . Swap 8 | . 5 3 Drop 2 | . . 2 Fire 90 | . 79 11 Melee . | . . . Ram . | . . . Kick 2 | . 2 . Crush 1 | . . 1 Escape Stasis . | . . . Rewire . | . . . Trap . | . . . Miscellaneous . | . . . Route ------- -11/Scrapyard -10/Materials (discovered 4 exits: [*Mat x2] / [*Min] / [*Sub]) -10/Subcaves History --------- Turn | Location | Event 1 | -11/Scrapyard | Discovered new exit (range 0) 1 | -11/Scrapyard | Entered Materials 310 | -10/Materials | Build established: Mutant 560 | -10/Materials | Discovered new exit (range 13) 645 | -10/Materials | Discovered new exit (range 7) 896 | -10/Materials | Central database locked down 1275 | -10/Materials | Discovered new exit (range 4) 1321 | -10/Materials | Core integrity fell below 50% 2172 | -10/Materials | Discovered new exit (range 8) 2208 | -10/Materials | Entered Subcaves 2393 | -10/Subcaves | Build established: Scavenger-Mutant 2426 | -10/Subcaves | Shifting Twisted Machinery released Battle Rifle 2620 | -10/Subcaves | Core integrity fell below 20% 2767 | -10/Subcaves | Build established: Mutant 3461 | -10/Subcaves | Learned 2 Materials zone layouts 3581 | -10/Subcaves | Shifting Twisted Machinery released Riot Gun 3985 | -10/Subcaves | Destroyed by Piercing Trap Last Messages --------------- 03122_ CC-4EQ(R) destroyed. 03123_ Acquired 20 matter. 03131_ Acquired 2 matter. 03138_ Acquired 1 matter. 03142_ Acquired 3 matter. 03288_ Slammed into U4-F62(O). 03318_ QY-V9P(R) destroyed. 03320_ Acquired 28 matter. 03327_ Acquired Sub. Laser. 03461_ Acquired derelict log, extracted data. Data stored: Materials zone layouts (x2). Riot Gun falls loose from the Twisted Machinery. 03659_ Acquired Riot Gun. 03972_ Triggered Piercing Trap. 03972_ Spikes shoot up from the floor. 03972_ Critical hit (Impale). 03972_ Lgt. Armor Plating destroyed. 03985_ Triggered Piercing Trap. 03985_ Spikes shoot up from the floor. 03985_ Critical hit (Impale). Map ----- +----------------------------------------------------+ | ?????????????????????????????????????? #???# | | ?????????????????????????????????????? #??# | | ??????????????????????????????????????? ### | | ???????????????????????????????????????? | | ????????????????????????????????????????? | | ??????????????????????????????????????????# | | ????????????????????????????????????????### | | ???????????????????????????????????????## | | ???????????????????????????????????????# | | ????????????????????????????????????????# | | ?????????????????????????????????????????# | | ??????????????????????????????????????????# | | ?????????????????????????????????????????## | | ?????????????????????????????????????????# | | ?????????????????????????????????????????### | | ????????????????????????????????????????####### | | ?????????????????##?????????????????????# ### | | ?????????????????? ##??##???????????????# | | ??????????????????? ### ???????????????# | | ???????????????????? ???????????????## | | ????????????????????? ????????????????## | | ?????????????????????# ????????????????## | | ?????????????????????# ##?????????????## ### | | ?????????????????????# #??????????#### ##?## | | ??????????????????????# #???###???## ##???# | | ??????????????????#####^ @##### ##### ##???? | | ????????????? # ## #???? | | ????????????????# ## #### #?? | | ???????????????# ^ #### ##??## ##?? | | ???????????????### # ######## ####??###??? | | ?????????????????##?# ^ ##???## ##??##### | | ????????????????????## ##????# #??# | | ?????????????????????#^ #?????# #?## | | ?????????????????????###??????## #?# | | ???????????????????????????????# #?# | | ???????????????????????????????# #?# ## | | ??????????????????????????????# # ## | | ??????????????????????????????# ###### #### ### | | ??????????????????????????????###??????##??#####?? | | ?????????????????????????????????????????????????? | | ?????????????????????????????????????????????????? | | ?????????????????????????????????????????????????? | | ?????????????????????????????????????????????????? | | ?????????????????????????????????????????????????? | | ?????????????????????????????????????????????????? | | ?????????????????????????????????????????????????? | | ?????????????????????????????????????????????????? | | ?????????????????????????????????????????????????? | | ?????????????????????????????????????????????????? | | ?????????????????????????????????????????????????? | +----------------------------------------------------+ Best States ------------- Heat Dissipation 39 Energy Generation 10 Energy Capacity 250 Matter Stores 300 Matter Capacity 300 Sight Range 16 Terrain Scan Density 10 Armor Coverage 150 Evasion (%) 55 Recoil Reduction 2 Item Schematics ----------------- None Robot Schematics ------------------ None Fabricated ------------ Nothing Repaired ---------- Nothing Alien Tech Used ----------------- None Achievements -------------- None Challenges ------------ None Game ------ Seed ReflectiveDeliverySpiker Manual? 0 Play Time 00:08:51 Cumulative 383.2 hours Start 2025.06.22 @ 17:33:39 End 2025.06.22 @ 17:40:06 Sessions 1 Manual Loads 0 Difficulty Rogue Special Mode None Game No. 479 Rogue 479 Adventurer 0 Explorer 0 Win Type - Total 30 Types 14/1/9/1/1/1/0/1/1/1 Lore% 86 Gallery% 78 Achievement% 77 Wizard Run 0 Options --------- Layout 0 ASCII 0 Keyboard 0 Movement Numpad Keybinds 0 Fullscreen 1 Font 18/SmallcapsGlow Map View 76x50 Zoom Use 0% Tactical HUD 1 Map Filters NONE Filters NONE Steam 1 RUN: 76399d90-7c46-4237-a624-da7dfc6fddab